Workbook

Sheet RESUMEN RES GDD 2020
A1: Ministerio de Salud
A2: Dirección de Desarrollo Humano
A3: Unidad Progreso Humano
A4: Área Gestión del Desarrollo
A6: MINISTERIO DE SALUD
A7: RESUMEN DE RESULTADOS DE CALIFICACIÓN DEL DESEMPEÑO PERÍODO: ENERO A DICIEMBRE 2020 (Nota: incluye 10 puestos de confianza y 2 puestos excluidos)
A9: NOMBRE UNIDAD ORGANIZATIVA | B9: RESULTADOS CUALITATIVOS CALIFICACIONES DEL DESEMPEÑO POR U.O. | H9: DISTRIBUCIÓN DE FUNCIONARIOS DE U.O. POR SEXO | L9: TOTAL | M9: TOTAL INSTITUCIONAL CALIFICADO
B10: EXCELENTE | C10: MUY BUENO | D10: BUENO | E10: REGULAR | F10: DEFICIENTE | G10: TOTAL FUNCIONARIOS | H10: MASCULINO | I10: FEMENINO | J10: INTERSEX | K10: TOTAL FUNCIONARIOS
A11: Despacho Ministro | B11: 39 | C11: 5 | D11: 0 | E11: 0 | F11: 0 | G11: =SUM(B11:F11) -> 44 | H11: 13 | I11: 31 | J11: 0 | K11: =SUM(H11:J11) -> 44 | L11: =SUM(B30:F30) -> 580 | M11: =+L11+L32+L51+L63+L76+L89+L103+L122+L135+L151 -> 2245
A12: Dirección Asuntos Jurídicos | B12: 18 | C12: 3 | D12: 0 | E12: 0 | F12: 0 | G12: =SUM(B12:F12) -> 21 | H12: 7 | I12: 14 | J12: 0 | K12: =SUM(H12:J12) -> 21
A13: Contraloria de Servicios | B13: 3 | C13: 0 | D13: 0 | E13: 0 | F13: 0 | G13: 3 | H13: 1 | I13: 2 | J13: 0 | K13: 3
A14: Relaciones Internacionales | B14: 1 | C14: 1 | D14: 1 | E14: 0 | F14: 0 | G14: 3 | H14: 1 | I14: 2 | J14: 0 | K14: 3
A15: Secretaría Téc. Salud Mental | B15: 5 | C15: 0 | D15: 0 | E15: 0 | F15: 0 | G15: 5 | H15: 0 | I15: 5 | J15: 0 | K15: 5
A16: Dirección Atención al Ciente | B16: 20 | C16: 3 | D16: 0 | E16: 0 | F16: 0 | G16: 23 | H16: 9 | I16: 14 | J16: 0 | K16: 23
A17: Dirección de Investigación y Tecnologías en Salud | B17: 7 | C17: 0 | D17: 0 | E17: 0 | F17: 0 | G17: 7 | H17: 2 | I17: 5 | J17: 0 | K17: 7
A18: Dirección de Desarrollo Humano | B18: 38 | C18: 3 | D18: 0 | E18: 0 | F18: 0 | G18: 41 | H18: 11 | I18: 30 | J18: 0 | K18: 41
A19: Dirección Financiera, Bienes y Servicios | B19: 10 | C19: 54 | D19: 1 | E19: 0 | F19: 0 | G19: 65 | H19: 36 | I19: 29 | J19: 0 | K19: 65
A20: Dirección Servicios de Salud | B20: 29 | C20: 0 | D20: 0 | E20: 0 | F20: 0 | G20: 29 | H20: 8 | I20: 21 | J20: 0 | K20: 29
A21: Auditoria Interna | B21: 9 | C21: 8 | D21: 1 | E21: 0 | F21: 0 | G21: 18 | H21: 5 | I21: 13 | J21: 0 | K21: 18
A22: Dirección General de Salud | B22: 28 | C22: 8 | D22: 1 | E22: 0 | F22: 0 | G22: 37 | H22: 18 | I22: 19 | J22: 0 | K22: 37
A23: Dirección Protección Radiológica y Salud Ambiental | B23: 33 | C23: 0 | D23: 0 | E23: 0 | F23: 0 | G23: 33 | H23: 15 | I23: 18 | J23: 0 | K23: 33
A24: Dirección Vigilancia de la Salud | B24: 17 | C24: 16 | D24: 0 | E24: 0 | F24: 0 | G24: 33 | H24: 15 | I24: 18 | J24: 0 | K24: 33
A25: Planificación Institucional | B25: 35 | C25: 4 | D25: 0 | E25: 0 | F25: 0 | G25: 39 | H25: 11 | I25: 28 | J25: 0 | K25: 39
A26: División Administrativa | B26: 17 | C26: 23 | D26: 0 | E26: 0 | F26: 0 | G26: 40 | H26: 30 | I26: 10 | J26: 0 | K26: 40
A27: Dpto. Tecnologías de Inf y Comunicación | B27: 23 | C27: 7 | D27: 0 | E27: 0 | F27: 0 | G27: 30 | H27: 19 | I27: 11 | J27: 0 | K27: 30
A28: Dirección Regulación Productos Interés Sanitario | B28: 95 | C28: 1 | D28: 0 | E28: 0 | F28: 0 | G28: 96 | H28: 28 | I28: 68 | J28: 0 | K28: 96
A29: En otras Instituciones | B29: 8 | C29: 4 | D29: 1 | E29: 0 | F29: 0 | G29: 13 | H29: 8 | I29: 5 | J29: 0 | K29: 13
A30: Total de funcionarios | B30: =SUM(B11:B29) -> 435 | C30: 140 | D30: 5 | E30: 0 | F30: 0 | G30: 580 | H30: =SUM(H11:H29) -> 237 | I30: =SUM(I11:I29) -> 343 | J30: =SUM(J11:J29) -> 0 | K30: 580
A32: DRRS Central Norte (Despacho) | B32: 6 | C32: 1 | D32: 0 | E32: 0 | F32: 0 | G32: =SUM(B32:F32) -> 7 | H32: 2 | I32: 5 | J32: 0 | K32: =SUM(H32:J32) -> 7 | L32: =SUM(G32:G48) -> 192
A33: UALA | B33: 14 | C33: 0 | D33: 0 | E33: 0 | F33: 0 | G33: =SUM(B33:F33) -> 14 | H33: 7 | I33: 7 | J33: 0 | K33: =SUM(H33:J33) -> 14
A34: UAC | B34: 1 | C34: 2 | D34: 0 | E34: 0 | F34: 0 | G34: 3 | H34: 2 | I34: 1 | J34: 0 | K34: 3
A35: UP | B35: 1 | C35: 1 | D35: 0 | E35: 0 | F35: 0 | G35: 2 | H35: 1 | I35: 1 | J35: 0 | K35: 2
A36: URS | B36: 13 | C36: 1 | D36: 0 | E36: 0 | F36: 0 | G36: 14 | H36: 8 | I36: 6 | J36: 0 | K36: 14
A37: DARS Alajuela 1 | B37: 9 | C37: 13 | D37: 0 | E37: 0 | F37: 0 | G37: 22 | H37: 14 | I37: 8 | J37: 0 | K37: 22
A38: DARS Alajuela 2 | B38: 5 | C38: 8 | D38: 0 | E38: 0 | F38: 0 | G38: 13 | H38: 4 | I38: 9 | J38: 0 | K38: 13
A39: DARS Atenas | B39: 9 | C39: 0 | D39: 0 | E39: 0 | F39: 0 | G39: 9 | H39: 3 | I39: 6 | J39: 0 | K39: 9
A40: DARS Belén - Flores | B40: 9 | C40: 2 | D40: 0 | E40: 0 | F40: 0 | G40: 11 | H40: 2 | I40: 9 | J40: 0 | K40: 11
A41: DARS Grecia | B41: 5 | C41: 10 | D41: 0 | E41: 0 | F41: 0 | G41: 15 | H41: 5 | I41: 10 | J41: 0 | K41: 15
A42: DARS Heredia | B42: 9 | C42: 5 | D42: 0 | E42: 0 | F42: 0 | G42: 14 | H42: 4 | I42: 10 | J42: 0 | K42: 14
A43: DARS Poás | B43: 2 | C43: 8 | D43: 0 | E43: 0 | F43: 0 | G43: 10 | H43: 5 | I43: 5 | J43: 0 | K43: 10
A44: DARS San Pablo - San Isidro | B44: 7 | C44: 2 | D44: 0 | E44: 0 | F44: 0 | G44: 9 | H44: 4 | I44: 5 | J44: 0 | K44: 9
A45: DARS San Rafael - Barva | B45: 5 | C45: 6 | D45: 0 | E45: 0 | F45: 0 | G45: 11 | H45: 2 | I45: 9 | J45: 0 | K45: 11
A46: DARS Santa Bárbara | B46: 8 | D46: 0 | E46: 0 | F46: 0 | G46: 8 | H46: 2 | I46: 6 | J46: 0 | K46: 8
A47: DARS Santo Domingo | B47: 6 | C47: 3 | D47: 0 | E47: 0 | F47: 0 | G47: 9 | H47: 1 | I47: 8 | J47: 0 | K47: 9
A48: DARS Sarapiquí | B48: 4 | C48: 17 | D48: 0 | E48: 0 | F48: 0 | G48: 21 | H48: 12 | I48: 9 | J48: 0 | K48: 21
A49: Total de funcionarios | B49: =SUM(B32:B48) -> 113 | C49: =SUM(C32:C48) -> 79 | D49: 0 | E49: 0 | F49: 0 | G49: =SUM(G32:G48) -> 192 | H49: =+C49+D49+E49+F51+G51 -> 93 | I49: 22 | J49: 206 | K49: =(SUM(K32:K48)) -> 192
A51: DRRS Central Occidente (Despacho) | B51: 8 | C51: 6 | D51: 0 | E51: 0 | F51: 0 | G51: =SUM(B51:F51) -> 14 | H51: 8 | I51: 6 | J51: 0 | K51: =SUM(H51:J51) -> 14 | L51: =SUM(G51:G60) -> 94
A52: UALA | B52: 1 | C52: 7 | D52: 0 | E52: 0 | F52: 0 | G52: =SUM(B52:F52) -> 8 | H52: 3 | I52: 5 | J52: 0 | K52: =SUM(H52:J52) -> 8
A53: UAC | B53: 2 | C53: 0 | D53: 0 | E53: 0 | F53: 0 | G53: 2 | H53: 1 | I53: 1 | J53: 0 | K53: 2
A54: UP | B54: 3 | C54: 2 | D54: 0 | E54: 0 | F54: 0 | G54: 5 | H54: 2 | I54: 3 | J54: 0 | K54: 5
A55: URS | B55: 8 | C55: 0 | D55: 0 | E55: 0 | F55: 0 | G55: 8 | H55: 5 | I55: 3 | J55: 0 | K55: 8
A56: DARS Naranjo | B56: 8 | C56: 3 | D56: 0 | E56: 0 | F56: 0 | G56: 11 | H56: 4 | I56: 7 | J56: 0 | K56: 11
A57: DARS Palmares | B57: 9 | C57: 2 | D57: 0 | E57: 0 | F57: 0 | G57: 11 | H57: 3 | I57: 8 | J57: 0 | K57: 11
A58: DARS San Ramón | B58: 1 | C58: 15 | D58: 0 | E58: 0 | F58: 0 | G58: 16 | H58: 5 | I58: 11 | J58: 0 | K58: 16
A59: DARS Valverde Vega | B59: 5 | C59: 5 | D59: 0 | E59: 0 | F59: 0 | G59: 10 | H59: 5 | I59: 5 | J59: 0 | K59: 10
A60: DARS Zarcero | B60: 8 | C60: 1 | D60: 0 | E60: 0 | F60: 0 | G60: 9 | H60: 6 | I60: 3 | J60: 0 | K60: 9
A61: Total de funcionarios | B61: =SUM(B51:B60) -> 53 | C61: =SUM(C51:C60) -> 41 | D61: 0 | E61: 0 | F61: 0 | G61: =SUM(B61:F61) -> 94 | H61: =SUM(H51:H60) -> 42 | I61: =SUM(I51:I60) -> 52 | J61: 0 | K61: =SUM(K51:K60) -> 94
A63: DRSS Huetar Norte (Despacho) | B63: 3 | C63: 5 | D63: 0 | E63: 0 | F63: 0 | G63: =SUM(B63:F63) -> 8 | H63: 7 | I63: 1 | J63: 0 | K63: =SUM(H63:J63) -> 8 | L63: =SUM(G63:G73) -> 125
A64: UALA | B64: 6 | C64: 3 | D64: 0 | E64: 0 | F64: 0 | G64: =SUM(B64:F64) -> 9 | H64: 5 | I64: 4 | J64: 0 | K64: =SUM(H64:J64) -> 9
A65: UAC | B65: 2 | C65: 1 | D65: 0 | E65: 0 | F65: 0 | G65: 3 | H65: 1 | I65: 2 | J65: 0 | K65: 3
A66: UP | B66: 4 | C66: 0 | D66: 0 | E66: 0 | F66: 0 | G66: 4 | H66: 1 | I66: 3 | J66: 0 | K66: 4
A67: URS | B67: 6 | C67: 3 | D67: 0 | E67: 0 | F67: 0 | G67: 9 | H67: 3 | I67: 6 | J67: 0 | K67: 9
A68: DARS Agua Zarcas | B68: 4 | C68: 14 | D68: 0 | E68: 0 | F68: 0 | G68: 18 | H68: 12 | I68: 6 | J68: 0 | K68: 18
A69: DARS Ciudad Quesada | B69: 4 | C69: 10 | D69: 0 | E69: 0 | F69: 0 | G69: 14 | H69: 4 | I69: 10 | J69: 0 | K69: 14
A70: DARS Florencia | B70: 1 | C70: 19 | D70: 0 | E70: 0 | F70: 0 | G70: 20 | H70: 13 | I70: 7 | J70: 0 | K70: 20
A71: DARS Guatuso | B71: 8 | C71: 2 | D71: 0 | E71: 0 | F71: 0 | G71: 10 | H71: 5 | I71: 5 | J71: 0 | K71: 10
A72: DARS Los Chiles | B72: 2 | C72: 13 | D72: 0 | E72: 0 | F72: 0 | G72: 15 | H72: 8 | I72: 7 | J72: 0 | K72: 15
A73: DARS Santa Rosa de Pocosol | B73: 1 | C73: 14 | D73: 0 | E73: 0 | F73: 0 | G73: 15 | H73: 12 | I73: 3 | J73: 0 | K73: 15
A74: Total de funcionarios | B74: =SUM(B63:B73) -> 41 | C74: =SUM(C63:C73) -> 84 | D74: 0 | E74: 0 | F74: 0 | G74: =SUM(B74:F74) -> 125 | H74: =SUM(H63:H73) -> 71 | I74: =SUM(I63:I73) -> 54 | J74: 0 | K74: =SUM(K63:K73) -> 125
A76: DRSS Brunca (Despacho) | B76: 8 | C76: 4 | D76: 0 | E76: 0 | F76: 0 | G76: =SUM(B76:F76) -> 12 | H76: 6 | I76: 6 | J76: 0 | K76: =SUM(H76:J76) -> 12 | L76: =SUM(G76:G86) -> 151
A77: UALA | B77: 2 | C77: 8 | D77: 0 | E77: 0 | F77: 0 | G77: =SUM(B77:F77) -> 10 | H77: 7 | I77: 3 | J77: 0 | K77: =SUM(H77:J77) -> 10
A78: UAC | B78: 2 | C78: 2 | D78: 0 | E78: 0 | F78: 0 | G78: 4 | H78: 2 | I78: 2 | J78: 0 | K78: 4
A79: UP | B79: 0 | C79: 7 | D79: 0 | E79: 0 | F79: 0 | G79: 7 | H79: 5 | I79: 2 | J79: 0 | K79: 7
A80: URS | B80: 2 | C80: 5 | D80: 0 | E80: 0 | F80: 0 | G80: 7 | H80: 4 | I80: 3 | J80: 0 | K80: 7
A81: DARS Buenos Aires | B81: 10 | C81: 6 | D81: 0 | E81: 0 | F81: 0 | G81: 16 | H81: 10 | I81: 6 | J81: 0 | K81: 16
A82: DARS Corredores | B82: 9 | C82: 13 | D82: 0 | E82: 0 | F82: 0 | G82: 22 | H82: 17 | I82: 5 | J82: 0 | K82: 22
A83: DARS Coto Brus | B83: 9 | C83: 4 | D83: 0 | E83: 0 | F83: 0 | G83: 13 | H83: 7 | I83: 6 | J83: 0 | K83: 13
A84: DARS Golfito | B84: 2 | C84: 18 | D84: 0 | E84: 0 | F84: 0 | G84: 20 | H84: 15 | I84: 5 | J84: 0 | K84: 20
A85: DARS Osa | B85: 8 | C85: 7 | D85: 0 | E85: 0 | F85: 0 | G85: 15 | H85: 10 | I85: 5 | J85: 0 | K85: 15
A86: DARS Pérez Zeledón | B86: 4 | C86: 21 | D86: 0 | E86: 0 | F86: 0 | G86: 25 | H86: 15 | I86: 10 | J86: 0 | K86: 25
A87: Total de funcionarios | B87: =SUM(B76:B86) -> 56 | C87: =SUM(C76:C86) -> 95 | D87: 0 | E87: 0 | F87: 0 | G87: =SUM(B87:F87) -> 151 | H87: =SUM(H76:H86) -> 98 | I87: =SUM(I76:I86) -> 53 | J87: 0 | K87: =SUM(K76:K86) -> 151
A89: DRRS Central Este (Despacho) | B89: 4 | C89: 0 | D89: 0 | E89: 0 | F89: 0 | G89: =SUM(B89:F89) -> 4 | H89: 0 | I89: 4 | J89: 0 | K89: =SUM(H89:J89) -> 4 | L89: =SUM(G89:G100) -> 128
A90: UALA | B90: 10 | C90: 5 | D90: 0 | E90: 0 | F90: 0 | G90: =SUM(B90:F90) -> 15 | H90: 12 | I90: 3 | J90: 0 | K90: =SUM(H90:J90) -> 15
A91: UAC | B91: 3 | C91: 0 | D91: 0 | E91: 0 | F91: 0 | G91: 3 | H91: 0 | I91: 3 | J91: 0 | K91: 3
A92: UP | B92: 1 | C92: 0 | D92: 0 | E92: 0 | F92: 0 | G92: 1 | H92: 1 | I92: 0 | J92: 0 | K92: 1
A93: URS | B93: 9 | C93: 0 | D93: 0 | E93: 0 | F93: 0 | G93: 9 | H93: 3 | I93: 6 | J93: 0 | K93: 9
A94: DARS Cartago | B94: 12 | C94: 4 | D94: 0 | E94: 0 | F94: 0 | G94: 16 | H94: 5 | I94: 11 | J94: 0 | K94: 16
A95: DARS El Guarco | B95: 1 | C95: 10 | D95: 0 | E95: 0 | F95: 0 | G95: 11 | H95: 2 | I95: 9 | J95: 0 | K95: 11
A96: DARS La Unión | B96: 8 | C96: 6 | D96: 0 | E96: 0 | F96: 0 | G96: 14 | H96: 8 | I96: 6 | J96: 0 | K96: 14
A97: DARS Los Santos | B97: 11 | C97: 0 | D97: 0 | E97: 0 | F97: 0 | G97: 11 | H97: 3 | I97: 8 | J97: 0 | K97: 11
A98: DARS Oreamuno | B98: 10 | C98: 1 | D98: 0 | E98: 0 | F98: 0 | G98: 11 | H98: 2 | I98: 9 | J98: 0 | K98: 11
A99: DARS Paraíso | B99: 10 | C99: 0 | D99: 0 | E99: 0 | F99: 0 | G99: 10 | H99: 5 | I99: 5 | J99: 0 | K99: 10
A100: DARS Turrialba | B100: 17 | C100: 6 | D100: 0 | E100: 0 | F100: 0 | G100: 23 | H100: 15 | I100: 8 | J100: 0 | K100: 23
A101: Total de funcionarios | B101: =SUM(B89:B100) -> 96 | C101: =SUM(C89:C100) -> 32 | D101: =SUM(D89:D100) -> 0 | E101: 0 | F101: 0 | G101: =SUM(B101:F101) -> 128 | H101: =SUM(H89:H100) -> 56 | I101: =SUM(I89:I100) -> 72 | J101: 0 | K101: 128
A103: DRRS Chorotega (Despacho) | B103: 3 | C103: 1 | D103: 0 | E103: 0 | F103: 0 | G103: =SUM(B103:F103) -> 4 | H103: 2 | I103: 2 | J103: 0 | K103: =SUM(H103:J103) -> 4 | L103: =SUM(G103:G119) -> 226
A104: UALA | B104: 5 | C104: 7 | D104: 0 | E104: 0 | F104: 0 | G104: =SUM(B104:F104) -> 12 | H104: 7 | I104: 5 | J104: 0 | K104: =SUM(H104:J104) -> 12
A105: UAC | B105: 4 | C105: 0 | D105: 0 | E105: 0 | F105: 0 | G105: 4 | H105: 0 | I105: 4 | J105: 0 | K105: 4
A106: UP | B106: 3 | C106: 0 | D106: 0 | E106: 0 | F106: 0 | G106: 3 | H106: 2 | I106: 1 | J106: 0 | K106: 3
A107: URS | B107: 6 | C107: 6 | D107: 0 | E107: 0 | F107: 0 | G107: 12 | H107: 6 | I107: 6 | J107: 0 | K107: 12
A108: DARS Abangares | B108: 8 | C108: 6 | D108: 0 | E108: 0 | F108: 0 | G108: 14 | H108: 10 | I108: 4 | J108: 0 | K108: 14
A109: DARS Bagaces | B109: 14 | C109: 1 | D109: 0 | E109: 0 | F109: 0 | G109: 15 | H109: 6 | I109: 9 | J109: 0 | K109: 15
A110: DARS Cañas | B110: 8 | C110: 7 | D110: 0 | E110: 0 | F110: 0 | G110: 15 | H110: 9 | I110: 6 | J110: 0 | K110: 15
A111: DARS Carrillo | B111: 20 | C111: 0 | D111: 0 | E111: 0 | F111: 0 | G111: 20 | H111: 15 | I111: 5 | J111: 0 | K111: 20
A112: DARS Hojancha | B112: 7 | C112: 1 | D112: 0 | E112: 0 | F112: 0 | G112: 8 | H112: 2 | I112: 6 | J112: 0 | K112: 8
A113: DARS La Cruz | B113: 16 | C113: 1 | D113: 0 | E113: 0 | F113: 0 | G113: 17 | H113: 14 | I113: 3 | J113: 0 | K113: 17
A114: DARS Liberia | B114: 11 | C114: 9 | D114: 0 | E114: 0 | F114: 0 | G114: 20 | H114: 14 | I114: 6 | J114: 0 | K114: 20
A115: DARS Nandayure | B115: 12 | C115: 1 | D115: 0 | E115: 0 | F115: 0 | G115: 13 | H115: 8 | I115: 5 | J115: 0 | K115: 13
A116: DARS Nicoya | B116: 16 | C116: 1 | D116: 1 | E116: 0 | F116: 0 | G116: 18 | H116: 11 | I116: 7 | J116: 0 | K116: 18
A117: DARS Santa Cruz | B117: 15 | C117: 9 | D117: 0 | E117: 0 | F117: 0 | G117: 24 | H117: 14 | I117: 10 | J117: 0 | K117: 24
A118: DARS Tilarán | B118: 8 | C118: 1 | D118: 0 | E118: 1 | F118: 0 | G118: 10 | H118: 4 | I118: 6 | J118: 0 | K118: 10
A119: DARS Upala | B119: 8 | C119: 9 | G119: 17 | H119: 10 | I119: 7 | J119: 0 | K119: 17
A120: Total de funcionarios | B120: =SUM(B103:B119) -> 164 | C120: =SUM(C103:C119) -> 60 | D120: 1 | E120: 1 | F120: 0 | G120: =SUM(B120:F120) -> 226 | H120: =SUM(H103:H119) -> 134 | I120: =SUM(I103:I119) -> 92 | J120: 0 | K120: 226
A122: DRRS Huetar Caribe (Despacho) | B122: 0 | C122: 6 | D122: 0 | E122: 0 | F122: 0 | G122: =SUM(B122:F122) -> 6 | H122: 3 | I122: 3 | J122: 0 | K122: =SUM(H122:J122) -> 6 | L122: =SUM(G122:G132) -> 224
A123: UALA | B123: 7 | C123: 7 | D123: 0 | E123: 0 | F123: 0 | G123: =SUM(B123:F123) -> 14 | H123: 6 | I123: 8 | J123: 0 | K123: =SUM(H123:J123) -> 14
A124: UAC | B124: 0 | C124: 4 | D124: 0 | E124: 0 | F124: 0 | G124: 4 | H124: 1 | I124: 3 | J124: 0 | K124: 4
A125: UP | B125: 0 | C125: 5 | D125: 0 | E125: 0 | F125: 0 | G125: 5 | H125: 0 | I125: 5 | J125: 0 | K125: 5
A126: URS | B126: 5 | C126: 5 | D126: 0 | E126: 0 | F126: 0 | G126: 10 | H126: 3 | I126: 7 | J126: 0 | K126: 10
A127: DARS Guácimo | B127: 2 | C127: 16 | D127: 0 | E127: 0 | F127: 0 | G127: 18 | H127: 13 | I127: 5 | J127: 0 | K127: 18
A128: DARS Limón | B128: 17 | C128: 22 | D128: 1 | E128: 0 | F128: 0 | G128: 40 | H128: 23 | I128: 17 | J128: 0 | K128: 40
A129: DARS Matina | B129: 15 | C129: 17 | D129: 0 | E129: 0 | F129: 0 | G129: 32 | H129: 21 | I129: 11 | J129: 0 | K129: 32
A130: DARS Pococí | B130: 7 | C130: 33 | D130: 0 | E130: 0 | F130: 0 | G130: 40 | H130: 26 | I130: 14 | J130: 0 | K130: 40
A131: DARS Siquirres | B131: 4 | C131: 23 | D131: 0 | E131: 0 | F131: 0 | G131: 27 | H131: 19 | I131: 8 | J131: 0 | K131: 27
A132: DARS Talamanca | B132: 3 | C132: 25 | D132: 0 | E132: 0 | F132: 0 | G132: 28 | H132: 8 | I132: 20 | J132: 0 | K132: 28
A133: Total de funcionarios | B133: =SUM(B122:B132) -> 60 | C133: =SUM(C122:C132) -> 163 | D133: 1 | E133: 0 | F133: 0 | G133: =SUM(G122:G132) -> 224 | H133: =SUM(H122:H132) -> 123 | I133: 101 | J133: 0 | K133: 224
A135: DRRS Pacífico Central (Despacho) | B135: 10 | C135: 0 | D135: 0 | E135: 0 | F135: 0 | G135: =SUM(B135:F135) -> 10 | H135: 9 | I135: 1 | J135: 0 | K135: =SUM(H135:J135) -> 10 | L135: =SUM(G135:G148) -> 217
A136: UALA | B136: 3 | C136: 10 | D136: 0 | E136: 0 | F136: 0 | G136: =SUM(B136:F136) -> 13 | H136: 10 | I136: 3 | J136: 0 | K136: =SUM(H136:J136) -> 13
A137: UAC | B137: 3 | C137: 0 | D137: 0 | E137: 0 | F137: 0 | G137: 3 | H137: 1 | I137: 2 | J137: 0 | K137: 3
A138: UP | B138: 5 | C138: 0 | D138: 0 | E138: 0 | F138: 0 | G138: 5 | H138: 1 | I138: 4 | J138: 0 | K138: 5
A139: URS | B139: 7 | C139: 0 | D139: 0 | E139: 0 | F139: 0 | G139: 7 | H139: 1 | I139: 6 | J139: 0 | K139: 7
A140: DARS Aguirre | B140: 5 | C140: 10 | D140: 0 | E140: 0 | F140: 0 | G140: 15 | H140: 11 | I140: 4 | J140: 0 | K140: 15
A141: DARS Barranca | B141: 2 | C141: 23 | D141: 0 | E141: 0 | F141: 0 | G141: 25 | H141: 18 | I141: 7 | J141: 0 | K141: 25
A142: DARS Esparza | B142: 9 | C142: 11 | D142: 0 | E142: 0 | F142: 0 | G142: 20 | H142: 16 | I142: 4 | J142: 0 | K142: 20
A143: DARS Garabito | B143: 9 | C143: 7 | D143: 0 | E143: 0 | F143: 0 | G143: 16 | H143: 10 | I143: 6 | J143: 0 | K143: 16
A144: DARS Montes de Oro | B144: 18 | C144: 4 | D144: 0 | E144: 0 | F144: 0 | G144: 22 | H144: 15 | I144: 7 | J144: 0 | K144: 22
A145: DARS Orotina - San Mateo | B145: 18 | C145: 1 | D145: 0 | E145: 0 | F145: 0 | G145: 19 | H145: 11 | I145: 8 | J145: 0 | K145: 19
A146: DARS Parrita | B146: 2 | C146: 10 | D146: 0 | E146: 0 | F146: 0 | G146: 12 | H146: 8 | I146: 4 | J146: 0 | K146: 12
A147: DARS Peninsular | B147: 16 | C147: 1 | D147: 0 | E147: 0 | F147: 0 | G147: 17 | H147: 13 | I147: 4 | J147: 0 | K147: 17
A148: DARS Puntarenas - Chacarita | B148: 1 | C148: 32 | D148: 0 | E148: 0 | F148: 0 | G148: 33 | H148: 25 | I148: 8 | J148: 0 | K148: 33
A149: Total de funcionarios | B149: =SUM(B135:B148) -> 108 | C149: =SUM(C135:C148) -> 109 | D149: 0 | E149: 0 | F149: 0 | G149: =SUM(G135:G148) -> 217 | H149: =SUM(H135:H148) -> 149 | I149: 68 | J149: 0 | K149: 217
A151: DRRS Central Sur (Despacho) | B151: 11 | C151: 1 | D151: 0 | E151: 0 | F151: 0 | G151: =SUM(B151:F151) -> 12 | H151: 6 | I151: 6 | J151: 0 | K151: =SUM(H151:J151) -> 12 | L151: =SUM(G151:G174) -> 308
A152: UALA | B152: 20 | C152: 1 | D152: 0 | E152: 0 | F152: 0 | G152: =SUM(B152:F152) -> 21 | H152: 12 | I152: 9 | J152: 0 | K152: =SUM(H152:J152) -> 21
A153: UAC | B153: 4 | C153: 1 | D153: 0 | E153: 0 | F153: 0 | G153: 5 | H153: 1 | I153: 4 | J153: 0 | K153: 5
A154: UP | B154: 5 | C154: 1 | D154: 0 | E154: 0 | F154: 0 | G154: 6 | H154: 3 | I154: 3 | J154: 0 | K154: 6
A155: URS | B155: 19 | C155: 7 | D155: 0 | E155: 0 | F155: 0 | G155: 26 | H155: 20 | I155: 6 | J155: 0 | K155: 26
A156: DARS Acosta | B156: 2 | C156: 5 | D156: 0 | E156: 0 | F156: 0 | G156: 7 | H156: 3 | I156: 4 | J156: 0 | K156: 7
A157: DARS Alajuelita | B157: 8 | C157: 4 | D157: 0 | E157: 0 | F157: 0 | G157: 12 | H157: 4 | I157: 8 | J157: 0 | K157: 12
A158: DARS Aserrí | B158: 10 | C158: 0 | D158: 0 | E158: 0 | F158: 0 | G158: 10 | H158: 3 | I158: 7 | J158: 0 | K158: 10
A159: DARS Carmen - Merced- Uruca | B159: 15 | C159: 1 | D159: 0 | E159: 0 | F159: 0 | G159: 16 | H159: 7 | I159: 9 | J159: 0 | K159: 16
A160: DARS Coronado | B160: 11 | C160: 0 | D160: 0 | E160: 0 | F160: 0 | G160: 11 | H160: 8 | I160: 3 | J160: 0 | K160: 11
A161: DARS Curridabat | B161: 7 | C161: 5 | D161: 0 | E161: 0 | F161: 0 | G161: 12 | H161: 4 | I161: 8 | J161: 0 | K161: 12
A162: DARS Desamparados | B162: 16 | C162: 0 | D162: 0 | E162: 0 | F162: 0 | G162: 16 | H162: 5 | I162: 11 | J162: 0 | K162: 16
A163: DARS Escazú | B163: 12 | C163: 5 | D163: 0 | E163: 0 | F163: 0 | G163: 17 | H163: 8 | I163: 9 | J163: 0 | K163: 17
A164: DARS Goicoechea | B164: 18 | C164: 0 | D164: 1 | E164: 0 | F164: 0 | G164: 19 | H164: 7 | I164: 12 | J164: 0 | K164: 19
A165: DARS Hatillo | B165: 8 | C165: 0 | D165: 0 | E165: 0 | F165: 0 | G165: 8 | H165: 1 | I165: 7 | J165: 0 | K165: 8
A166: DARS Hospital Mata Redonda | B166: 2 | C166: 13 | D166: 0 | E166: 0 | F166: 0 | G166: 15 | H166: 4 | I166: 11 | J166: 0 | K166: 15
A167: DARS Montes de Oca | B167: 11 | C167: 2 | D167: 0 | E167: 0 | F167: 0 | G167: 13 | H167: 4 | I167: 9 | J167: 0 | K167: 13
A168: DARS Mora | B168: 10 | C168: 0 | D168: 0 | E168: 0 | F168: 0 | G168: 10 | H168: 3 | I168: 7 | J168: 0 | K168: 10
A169: DARS Moravia | B169: 6 | C169: 3 | D169: 0 | E169: 0 | F169: 0 | G169: 9 | H169: 5 | I169: 4 | J169: 0 | K169: 9
A170: DARS Pavas | B170: 11 | C170: 0 | D170: 0 | E170: 0 | F170: 0 | G170: 11 | H170: 5 | I170: 6 | J170: 0 | K170: 11
A171: DARS Puriscal - Turrubares | B171: 1 | C171: 12 | D171: 0 | E171: 0 | F171: 0 | G171: 13 | H171: 7 | I171: 6 | J171: 0 | K171: 13
A172: DARS Santa Ana | B172: 9 | C172: 4 | D172: 0 | E172: 0 | F172: 0 | G172: 13 | H172: 3 | I172: 10 | J172: 0 | K172: 13
A173: DARS Sur Este Metropolitana | B173: 14 | C173: 1 | D173: 0 | E173: 0 | F173: 0 | G173: 15 | H173: 7 | I173: 8 | J173: 0 | K173: 15
A174: DARS Tibás | B174: 10 | C174: 1 | D174: 0 | E174: 0 | F174: 0 | G174: 11 | H174: 3 | I174: 8 | J174: 0 | K174: 11
A175: Total de funcionarios | B175: =SUM(B151:B174) -> 240 | C175: =SUM(C151:C174) -> 67 | D175: =SUM(D151:D174) -> 1 | E175: =SUM(E151:E174) -> 0 | F175: =SUM(F151:F174) -> 0 | G175: 308 | H175: =SUM(H151:H174) -> 133 | I175: 175 | J175: =SUM(J151:J174) -> 0 | K175: =SUM(K151:K174) -> 308
A177: Fuente: Unidad Progreso Humano, registros GDD 2020. Mayo 31, 2021
A181: RESUMEN DE RESULTADOS CUALITATIVOS DE GDD 2020
A182: CALIFICACIÓN | B182: ABSOLUTO (Cantidad) | C182: RELATIVO (%)
A183: EXCELENTE | B183: =B30+B49+B61+B74+B87+B101+B120+B133+B149+B175 -> 1366 | C183: =+B183/B188*100 -> 60.84632517
A184: MUY BUENO | B184: =+C30+C49+C61+C74+C87+C101+C120+C133+C149+C175 -> 870 | C184: =+B184/B188*100 -> 38.75278396
A185: BUENO | B185: =+D30+D49+D61+D74+D87+D101+D120+D133+D149+D175 -> 8 | C185: =+B185/B188*100 -> 0.3563474388
A186: REGULAR | B186: =+E30+E49+E61+E74+E87+E101+E120+E133+E149+E175 -> 1 | C186: =+B186/B188*100 -> 0.04454342984
A187: DEFICIENTE | B187: =+F30+F49+F61+F74+F87+F101+F120+F133+F149+F175 -> 0 | C187: =+B187/B188*100 -> 0
A188: TOTAL | B188: =SUM(B183:B187) -> 2245 | C188: =SUM(C183:C187) -> 100
A189: Fuente: Unidad Progreso Humano, registros GDD 2020. Mayo 31, 2021
A192: RESULTADOS GDD 2020 SEGÚN ESTADO (CALIFICADO/PENDIENTES)
A193: ESTADO | B193: Total (Absoluto) | C193: Relativo (%)
A194: Calificados | B194: =+B188 -> 2245 | C194: =+B194/B196*100 -> 99.46832078
A195: No calificados (pendientes) | B195: 12 | C195: =+B195/B196*100 -> 0.5316792202
A196: Total | B196: =SUM(B194:B195) -> 2257 | C196: =SUM(C194:C195) -> 100
A197: Fuente: Registros GDD 2020, UPH. Al 30-05-2021.
A200: Cobertura institucional calificados 2020: | B200: =+C194 -> 99.46832078 | C200: %
A201: Fuente: Registros GDD 2020, UPH. Al 30-05-2021.
